bitfinex/quotes_ETHUSD_20250603
["timestamp","ask_amount","ask_price","bid_price","bid_amount"]
[1748941264136,1.1228,2607.7,2607.3,3.83529634]
[1748941264417,1.1228,2607.7,2607.2,11.83547683]
[1748941265006,1.1228,2607.7,2607.3,3.83538526]
[1748941266154,1.1228,2607.7,2607.2,4.43438379]
[1748941266453,1.1228,2607.7,2607.3,3.83530863]
[1748941266912,1.1228,2607.7,2607.3,3.83530021]
[1748941267233,1.1228,2607.7,2607.4,3.83513398]
[1748941267441,1.1305,2607.9,2607.5,6.74929162]
[1748941267612,5.0265,2607.9,2607.5,6.74929162]
[1748941267812,1.1305,2607.9,2607.6,3.834944]
[1748941268109,1.1305,2607.9,2607.6,8.0]
[1748941268847,1.1688,2607.2,2606.7,3.83617344]
[1748941269051,1.1688,2607.2,2606.8,8.0]
[1748941269452,1.1688,2607.2,2606.7,8.0]
[1748941269751,1.1688,2607.2,2606.7,3.83624574]
[1748941270551,1.1688,2607.2,2606.6,11.83634716]
[1748941270709,1.1688,2607.2,2606.7,3.83622863]
[1748941271946,1.1688,2607.2,2606.6,4.22323258]
[1748941272122,1.1411,2607.1,2606.8,8.0]
[1748941273650,1.1411,2607.1,2606.7,8.0]
[1748941274233,1.1411,2607.1,2606.7,3.83624366]
[1748941274851,1.1411,2607.1,2606.6,4.22318832]
[1748941275152,1.1411,2607.1,2606.8,8.0]
[1748941275523,4.9106205,2607.1,2606.8,8.0]
[1748941275709,1.1666,2607.0,2606.8,8.0]
[1748941277225,1.1666,2607.0,2606.6,8.38683407]
[1748941277420,1.1666,2607.0,2606.6,8.0]
[1748941277626,1.1666,2607.0,2606.6,11.83641355]
[1748941278530,5.0626,2607.0,2606.6,11.83641355]
[1748941279222,1.1666,2607.0,2606.6,2.9143142]
[1748941279427,1.1449,2607.2,2607.0,8.0]
[1748941279629,0.50409,2607.1,2606.8,14.7503883]
[1748941279824,1.1449,2607.2,2606.8,14.7503883]
[1748941280251,1.1449,2607.2,2606.9,3.83596531]
[1748941280449,1.1449,2607.2,2606.9,3.83586446]
[1748941281143,1.1449,2607.2,2606.8,14.75036573]
[1748941282256,1.1449,2607.2,2606.8,10.9143142]
[1748941282549,1.1449,2607.2,2607.0,3.83582662]
[1748941282756,1.1449,2607.2,2606.9,11.83593665]
[1748941284557,2.9343142,2607.9,2606.9,11.83596317]
[1748941284558,3.83468771,2607.8,2606.9,11.83596317]
[1748941284854,5.43446877,2607.7,2607.0,2.9143142]
[1748941285152,5.43446877,2607.7,2607.0,8.0]
[1748941285153,1.153,2607.5,2607.0,8.0]
[1748941285517,1.153,2607.5,2607.0,11.83576043]
[1748941285718,1.153,2607.5,2607.0,15.53576043]
[1748941286754,1.153,2607.5,2607.2,11.8355117]
[1748941286956,1.118,2607.8,2607.4,8.0]
[1748941287135,3.896,2607.7,2607.3,8.0]
[1748941287318,1.118,2607.8,2607.3,11.83533719]
[1748941287517,3.896,2607.7,2607.3,11.83533719]
[1748941287820,5.014,2607.8,2607.3,11.83533719]
[1748941288634,5.014,2607.8,2607.3,8.0]
[1748941289056,5.014,2607.8,2607.3,12.21877398]
[1748941289363,5.014,2607.8,2607.3,11.83537398]
[1748941291278,4.95267594,2607.8,2607.3,8.0]
[1748941291574,1.118,2607.8,2607.3,8.0]
[1748941291749,1.118,2607.8,2607.3,11.83537578]
[1748941291956,1.118,2607.8,2607.3,8.0]
[1748941292349,8.84866535,2607.8,2607.1,11.8356076]
[1748941292675,8.84866535,2607.8,2607.3,8.0]
[1748941293172,5.014,2607.8,2607.3,8.0]
[1748941293374,8.84865598,2607.8,2607.3,8.0]
[1748941294742,8.84865598,2607.8,2607.0,6.95901442]
[1748941294743,1.1074,2607.6,2607.1,8.0]
[1748941294937,1.1074,2607.6,2607.1,11.83556699]
[1748941295155,1.1074,2607.6,2607.2,3.83551631]
[1748941295372,1.1074,2607.6,2607.3,10.0]
[1748941297554,1.1074,2607.6,2607.4,8.0]
[1748941298146,1.1074,2607.6,2607.2,3.83551631]
[1748941298365,1.1074,2607.6,2607.2,11.83544087]
[1748941298560,1.1074,2607.6,2607.3,8.0]
[1748941300989,1.1074,2607.6,2607.3,3.83533534]
[1748941301191,5.0024,2607.6,2607.4,10.0]
[1748941301391,5.0024,2607.6,2607.4,3.83522979]
[1748941301392,1.1074,2607.6,2607.4,3.83522979]
[1748941301712,3.895,2607.6,2607.4,3.83522979]
[1748941301876,3.895,2607.6,2607.4,10.0]
[1748941302076,3.895,2607.7,2607.4,13.83520259]
[1748941302285,3.895,2607.7,2607.4,3.83520259]
[1748941303088,3.895,2607.7,2607.3,3.83534037]
[1748941303298,3.895,2607.7,2607.4,3.83523476]
[1748941303599,3.895,2607.7,2607.4,13.83523637]
[1748941304165,3.895,2607.7,2607.4,13.83515868]
[1748941304402,3.895,2607.7,2607.4,10.0]
[1748941305001,3.895,2607.7,2607.4,13.83523728]
[1748941305201,5.0006,2607.8,2607.4,10.0]
[1748941306297,5.0006,2607.8,2607.4,13.835233]
[1748941306599,5.0006,2607.8,2607.4,10.0]
[1748941307311,5.0006,2607.8,2607.3,4.07636132]
[1748941307619,5.0006,2607.8,2607.4,8.0]
[1748941307777,5.0006,2607.8,2607.4,11.83522475]
[1748941307977,5.0006,2607.8,2607.6,8.0]
[1748941308212,5.0006,2607.8,2607.5,12.401401]
[1748941308520,5.0006,2607.8,2607.5,12.665233]
[1748941308682,5.0006,2607.8,2607.4,3.83522475]
[1748941309611,5.0006,2607.8,2607.6,8.0]
[1748941309975,5.0006,2607.8,2607.4,3.83522475]
[1748941310400,5.0006,2607.8,2607.3,12.07641274]
[1748941310609,5.0006,2607.8,2607.3,11.83531274]
[1748941312185,8.83528912,2607.8,2607.3,8.0]
[1748941312389,6.26956473,2607.8,2607.3,11.83538278]
[1748941313190,6.26956473,2607.8,2607.6,8.0]
[1748941313610,6.26956473,2607.8,2607.4,3.835202]
[1748941313884,1.1056,2607.8,2607.4,8.0]
[1748941314089,3.915,2607.9,2607.6,14.74917648]
[1748941314312,3.915,2607.9,2607.6,11.83486228]
[1748941314509,3.915,2607.9,2607.6,8.0]
[1748941315121,3.915,2607.9,2607.6,11.83488138]
[1748941316325,3.865,2607.9,2607.6,11.83488138]
[1748941316825,3.865,2607.9,2607.6,8.0]
[1748941317528,1.1383,2608.0,2607.6,8.0]
[1748941317826,3.895,2607.9,2607.6,8.0]
[1748941318047,3.895,2607.9,2607.6,8.43664369]
[1748941318191,3.895,2607.9,2607.6,12.27150992]
[1748941318397,3.895,2607.9,2607.6,8.43664369]
[1748941319128,3.845,2607.9,2607.6,12.27154905]
[1748941319339,1.1383,2608.0,2607.9,8.0]
[1748941319496,5.0333,2608.0,2607.9,8.0]
[1748941319897,5.0333,2608.0,2607.7,11.83473537]
[1748941320318,5.0333,2608.0,2607.7,8.0]
[1748941321424,5.0333,2608.0,2607.9,18.0]
[1748941321639,5.0333,2608.0,2607.9,8.0]
[1748941324833,8.86765582,2608.0,2607.5,15.303209]
[1748941325040,5.0333,2608.0,2607.5,3.83507443]
[1748941325238,5.0333,2608.0,2607.5,13.83507443]
[1748941325436,5.0333,2608.0,2607.6,3.83493425]
[1748941326125,1.1383,2608.0,2607.6,3.83493425]
[1748941326439,5.0323,2608.0,2607.6,3.83493425]
[1748941326803,5.0323,2608.0,2607.6,12.27406091]
[1748941327546,5.0323,2608.0,2607.6,8.43912666]
[1748941327717,1.1288,2607.9,2607.2,0.41060842]
[1748941327910,1.1288,2607.8,2607.4,8.0]
[1748941328113,3.894,2607.7,2607.4,8.0]
[1748941328337,3.894,2607.7,2607.4,8.43350707]
[1748941329726,3.894,2607.7,2607.4,0.43350707]
[1748941329930,3.894,2607.7,2607.4,8.0]
[1748941330812,3.894,2607.7,2607.2,4.2460659]
[1748941331017,3.894,2607.7,2607.4,8.0]
[1748941331321,3.894,2607.7,2607.4,0.45323607]
[1748941331526,3.894,2607.7,2607.2,4.24606883]
[1748941331926,3.894,2607.7,2607.4,8.0]
[1748941332322,3.894,2607.7,2607.2,0.41060842]
[1748941332613,1.1556,2607.6,2607.4,8.0]
[1748941332821,2.04404253,2607.6,2607.2,0.41060842]
[1748941333115,1.1556,2607.6,2607.4,8.0]
[1748941333323,1.1556,2607.6,2607.2,4.6863755]
[1748941334458,1.1556,2607.6,2607.4,8.0]
[1748941335343,1.1556,2607.6,2607.2,4.6863755]
[1748941335582,1.1556,2607.6,2607.2,0.85084354]
[1748941336086,1.1556,2607.6,2607.2,4.68635875]
[1748941336383,1.1556,2607.6,2607.2,0.85084354]
[1748941336886,1.1556,2607.6,2607.3,10.0]
[1748941337079,1.1556,2607.6,2607.2,4.68636816]
[1748941337745,1.1556,2607.6,2607.3,8.0]
[1748941338791,1.1556,2607.6,2607.3,18.0]
[1748941339000,1.1556,2607.6,2607.2,0.41060842]
[1748941339001,2.0440308,2607.6,2607.2,0.41060842]
[1748941339199,5.87901842,2607.6,2607.3,10.0]
[1748941339958,2.0440308,2607.6,2607.3,10.0]
[1748941341466,0.55,2607.2,2606.4,1.21523757]
[1748941341765,0.55,2607.2,2606.1,1.53904696]
[1748941341766,3.83700406,2606.2,2606.1,0.02]
[1748941341963,8.95770406,2606.2,2606.1,0.02]
[1748941342885,5.03870406,2606.2,2606.1,0.02]
[1748941343060,8.95870406,2606.2,2606.1,0.02]
[1748941344480,1.2017,2606.2,2606.1,0.02]
[1748941344656,5.1217,2606.2,2606.1,0.02]
[1748941344996,1.2017,2606.2,2606.1,0.02]
[1748941345492,5.1217,2606.2,2606.1,0.02]
[1748941345689,1.0908,2606.0,2605.4,0.45113834]
[1748941345889,1.0908,2606.0,2604.4,1.21523757]
[1748941345890,3.83842803,2605.3,2605.1,0.02]
[1748941346076,3.945,2605.3,2605.1,0.02]
[1748941346283,7.78336393,2605.3,2605.1,0.02]
[1748941346509,3.945,2605.3,2605.1,0.02]
[1748941347877,7.78336113,2605.3,2605.1,0.02]
[1748941348584,4.98477689,2605.2,2605.1,0.02]
[1748941349569,1.1463,2605.2,2605.1,0.02]
[1748941349759,1.0882,2605.6,2605.2,18.0]
[1748941349965,7.78244642,2605.9,2605.5,2.9143142]
[1748941350189,3.945,2605.8,2605.5,6.24833]
[1748941350394,3.945,2605.8,2605.6,10.0]
[1748941350559,3.945,2605.8,2605.5,6.24833]
[1748941350761,7.78261999,2605.8,2605.6,10.0]
[1748941350961,7.78261999,2605.8,2605.4,8.0]
[1748941351373,3.83775217,2605.7,2605.4,8.0]
[1748941351794,3.83775217,2605.7,2605.1,3.0280142]
[1748941351795,5.21842461,2605.8,2605.1,0.02]
[1748941351974,3.83821362,2605.4,2605.1,0.02]
[1748941352297,3.945,2605.4,2605.1,0.02]
[1748941355473,3.945,2605.4,2605.1,8.02]
[1748941355799,0.03842307,2605.6,2605.3,8.0]
[1748941355998,3.944,2605.6,2605.3,8.0]
[1748941356295,3.944,2605.6,2605.2,6.75270878]
[1748941357082,3.944,2605.6,2605.3,10.0]
[1748941357265,3.944,2605.6,2605.2,2.9143142]
[1748941358401,1.1679,2605.7,2605.3,10.0]
[1748941358570,5.00565043,2605.7,2605.2,2.9143142]
[1748941358766,3.942,2605.6,2605.2,2.9143142]
[1748941358967,3.941,2605.6,2605.2,2.9143142]
[1748941359168,3.941,2605.6,2605.2,6.75278225]
[1748941360487,1.1679,2605.7,2605.3,8.0]
[1748941360690,3.94,2605.6,2605.3,8.0]
[1748941363483,3.94,2605.6,2605.1,11.85855239]
[1748941363692,3.94,2605.6,2605.3,8.0]
[1748941364017,3.937,2605.6,2605.4,8.0]
[1748941364179,3.937,2605.7,2605.4,8.0]
[1748941364515,3.83745125,2605.9,2605.4,8.0]
[1748941364809,1.1285,2606.0,2605.4,8.0]
[1748941365008,3.937,2605.8,2605.4,8.0]
[1748941365211,3.936,2605.7,2605.4,8.0]
[1748941365513,3.83745397,2605.9,2605.4,8.0]
[1748941365728,3.936,2605.8,2605.4,8.0]
[1748941365883,3.83745397,2605.9,2605.4,8.0]
[1748941366083,3.937,2605.8,2605.4,8.0]
[1748941366978,3.937,2605.8,2605.5,10.0]
[1748941367183,1.1285,2606.0,2605.6,6.75219948]
[1748941367443,3.936,2605.9,2605.6,2.9143142]
[1748941367579,1.1285,2606.0,2605.6,8.0]
[1748941367775,1.1285,2606.0,2605.5,8.0]
[1748941368024,3.935,2605.9,2605.5,8.0]
[1748941368227,3.935,2605.9,2605.5,11.83799672]
[1748941368607,1.1324,2606.4,2605.7,8.0]
[1748941368806,1.1324,2606.4,2605.6,3.0138142]
[1748941368807,3.935,2606.3,2605.6,3.0138142]
[1748941369007,3.935,2606.3,2605.7,8.0]
[1748941369391,3.935,2606.3,2605.9,8.0]
[1748941369923,3.935,2606.3,2605.7,8.0]
[1748941370129,3.97342307,2606.3,2605.7,8.0]
[1748941370283,7.81038071,2606.3,2605.7,11.83773142]
[1748941370697,9.88129243,2606.3,2605.7,8.0]
[1748941370909,9.84286936,2606.3,2605.7,8.0]
[1748941372225,3.933,2606.2,2605.7,8.0]
[1748941372722,5.90786936,2606.3,2605.7,8.0]
[1748941372911,3.932,2606.1,2605.7,8.0]
[1748941373083,3.932,2606.1,2605.7,3.83774005]
[1748941373285,3.932,2606.1,2605.8,8.0]
[1748941374138,5.90786936,2606.3,2605.8,8.0]
[1748941374426,3.931,2606.2,2605.8,3.83757114]
[1748941374728,4.9691436,2606.4,2605.9,10.0]
[1748941375032,3.93,2606.3,2605.9,10.0]
[1748941375593,7.76687656,2606.3,2605.8,10.0]
[1748941376292,3.93,2606.2,2605.8,10.0]
[1748941377786,3.93,2606.2,2605.8,9.090034]
[1748941378031,3.93,2606.2,2605.8,0.36692173]
[1748941378236,3.93,2606.2,2605.9,10.0]
[1748941378541,4.90798278,2606.2,2605.7,11.83766808]
[1748941381026,4.90798278,2606.2,2605.7,18.0]
[1748941381231,3.93,2606.2,2605.7,11.83765185]
[1748941381419,3.93,2606.2,2605.8,3.83755467]
[1748941382127,5.84974136,2606.4,2605.8,3.83755467]
[1748941382326,3.925,2606.3,2605.8,3.83754772]
[1748941382494,5.84974136,2606.4,2605.8,3.83754772]
[1748941382695,4.8926307,2606.3,2605.8,3.83754772]
[1748941383725,3.924,2606.2,2605.8,3.83754772]
[1748941384226,3.923,2606.2,2605.8,3.83754772]
[1748941384927,3.923,2606.2,2605.3,7.76323199]
[1748941384928,3.83758789,2605.9,2605.3,0.0995]
[1748941385127,4.30775879,2605.8,2605.4,8.0]
[1748941385341,4.30775879,2605.8,2605.4,3.55402]
[1748941385547,4.30775879,2605.8,2605.5,10.0]
[1748941385713,4.30775879,2605.8,2605.4,2.934172]
[1748941385895,3.924,2606.3,2605.8,6.523574]
[1748941386234,3.924,2606.3,2605.8,13.8375884]
[1748941386400,3.924,2606.3,2605.9,14.199219]
[1748941386600,3.924,2606.3,2606.0,10.0]
[1748941386821,3.924,2606.3,2605.9,19.84774498]
[1748941387129,1.12,2606.4,2606.0,21.24374091]
[1748941387303,5.048,2606.4,2606.1,3.152607]
[1748941387492,1.12,2606.4,2606.1,6.98975083]
[1748941387728,3.928,2606.4,2606.2,3.83699153]
[1748941388896,3.928,2606.4,2606.1,10.0995]
[1748941388897,3.928,2606.4,2606.1,13.93661231]
[1748941389210,4.9785926,2606.9,2606.1,13.93661231]
[1748941389211,1.1426,2606.9,2606.3,3.83674608]
[1748941389414,3.933,2606.8,2606.3,3.83674608]
[1748941389602,3.933,2606.8,2606.3,10.0]
[1748941390326,3.933,2606.8,2606.2,3.83693735]
[1748941390834,3.933,2606.8,2606.3,13.83683399]
[1748941391036,3.933,2606.8,2606.3,10.0]
[1748941391414,3.83613639,2606.8,2606.3,10.0]
[1748941391628,7.76713639,2606.8,2606.2,20.0]
[1748941391825,7.76713639,2606.8,2606.2,13.83697728]
[1748941392045,7.76713639,2606.8,2606.2,11.83697728]
[1748941393498,3.931,2606.8,2606.2,8.0]
[1748941393697,7.76715787,2606.8,2606.2,12.22002854]
[1748941393933,3.931,2606.8,2606.2,12.22002854]
[1748941394142,7.76712139,2606.8,2606.2,12.22010268]
[1748941394516,3.931,2606.8,2606.2,8.38313867]
[1748941394838,7.76713676,2606.8,2606.2,8.38313867]
[1748941395542,3.83635301,2606.7,2606.2,8.38313867]
[1748941396700,3.83643909,2606.6,2606.2,8.38313867]
[1748941396919,6.1126999,2606.6,2606.2,8.38313867]
[1748941397117,3.83685684,2606.3,2606.2,0.38313867]
[1748941397338,3.83685684,2606.3,2606.2,2.4]
[1748941397737,3.83675398,2606.4,2606.2,2.4]
[1748941398584,3.932,2606.3,2606.2,2.4]
[1748941399972,7.76885684,2606.3,2605.8,8.0]
[1748941400129,3.932,2606.3,2605.8,11.83758244]
[1748941400329,3.932,2606.3,2605.8,12.22368519]
[1748941400554,7.76887114,2606.3,2605.8,8.38610275]
[1748941401528,3.932,2606.3,2605.8,8.38610275]
[1748941401850,7.76885766,2606.3,2605.8,8.38610275]
[1748941402072,3.932,2606.3,2606.0,8.0]
[1748941402526,3.932,2606.3,2605.8,0.38610275]
[1748941402527,1.1608,2606.2,2605.8,0.38610275]
[1748941402728,4.99780596,2606.2,2606.0,8.0]
[1748941402958,4.99780596,2606.2,2605.8,0.37736427]
[1748941403185,4.99780596,2606.2,2606.0,8.0]
[1748941403366,4.99780596,2606.2,2605.6,8.41854927]
[1748941403927,6.31379466,2606.2,2605.6,12.25640667]
[1748941404128,6.31379466,2606.2,2605.8,8.0]
[1748941404129,2.4767887,2606.2,2605.8,8.0]
[1748941404374,6.31391547,2606.2,2605.8,8.0]
[1748941404587,2.4767887,2606.2,2605.8,8.0]
[1748941404738,1.1608,2606.2,2605.8,8.0]
[1748941405346,1.1608,2606.2,2605.2,7.76644186]
[1748941405347,3.83739853,2606.0,2605.4,20.0]
[1748941405679,5.00949938,2606.1,2605.6,8.0]
[1748941405841,3.936,2605.9,2605.7,4.641117]
[1748941406037,3.936,2605.9,2605.8,10.0]
[1748941406241,3.936,2605.9,2605.7,4.641117]
[1748941406443,3.936,2605.9,2605.8,10.0]
[1748941406644,3.936,2605.9,2605.5,8.0]
[1748941406952,3.935,2605.9,2605.5,11.83801912]
[1748941407285,7.7725028,2605.9,2605.4,0.38224616]
[1748941407449,3.83759574,2605.8,2605.4,0.38224616]
[1748941407645,1.1874,2605.7,2605.4,10.009597]
[1748941407878,1.1874,2605.7,2605.4,8.0]
[1748941409342,3.934,2605.8,2605.4,8.0]
[1748941409788,3.934,2605.8,2605.4,11.83813553]
[1748941410287,3.934,2605.8,2605.4,8.0]
[1748941410439,4.91725779,2605.9,2605.4,8.0]
[1748941410644,3.932,2605.8,2605.4,8.0]
[1748941412063,3.932,2605.8,2605.4,8.38810203]
[1748941415274,1.1617,2605.7,2605.4,8.38810203]
[1748941417279,5.0897,2605.7,2605.4,8.38810203]
[1748941417748,1.1617,2605.7,2605.4,8.38810203]
[1748941418051,5.0887,2605.7,2605.4,8.38810203]
[1748941418796,5.0887,2605.7,2605.4,12.22626469]
[1748941421152,1.1617,2605.7,2605.4,12.22626469]
[1748941421356,3.8370369,2606.2,2605.5,4.01462324]
[1748941421357,4.95201768,2606.1,2605.5,4.01462324]
[1748941421581,3.924,2606.0,2605.5,4.01462324]
[1748941421781,7.76131209,2606.0,2605.4,12.2262197]
[1748941421993,3.924,2606.0,2605.6,3.83780364]
[1748941422198,3.924,2606.0,2605.5,6.75229334]
[1748941422469,3.924,2606.0,2605.6,3.83787365]
[1748941422683,0.70545302,2606.0,2605.6,3.83787365]
[1748941422970,3.924,2605.9,2605.5,6.75227603]
[1748941425398,3.924,2605.9,2605.6,8.0]
[1748941425601,0.70545302,2606.0,2605.6,8.0]
[1748941425771,3.922,2605.9,2605.6,8.0]
[1748941426610,5.37498064,2606.1,2605.6,8.0]
[1748941426796,3.921,2606.0,2605.6,8.0]
[1748941427714,7.75836138,2606.0,2605.6,8.0]
[1748941427898,9.07168484,2606.0,2605.6,8.0]
[1748941428404,1.135,2605.9,2605.5,8.0]
[1748941429674,1.135,2605.9,2605.5,11.8380243]
[1748941431310,1.135,2605.9,2605.5,8.0]
[1748941432875,1.135,2605.9,2605.5,11.83798264]
[1748941433108,3.916,2605.8,2605.5,11.83798264]
[1748941436289,3.914,2605.8,2605.5,8.0]
[1748941436617,3.914,2605.8,2605.5,11.83797541]
[1748941437201,3.164,2605.8,2605.5,11.83797541]
[1748941438633,3.164,2605.8,2605.6,10.0]
[1748941439922,3.164,2605.8,2605.5,3.83797541]
[1748941440093,3.164,2605.8,2605.6,10.0]
[1748941441129,3.164,2605.8,2605.5,20.0]
[1748941441294,3.164,2605.8,2605.5,9.525781]
[1748941441820,3.164,2605.8,2605.5,9.208972]
[1748941442944,3.164,2605.8,2605.4,6.75242888]
[1748941443098,3.164,2605.8,2605.6,10.0]
[1748941443297,3.164,2605.8,2605.4,6.75242888]
[1748941443526,3.164,2605.8,2605.6,10.0]
[1748941443790,3.164,2605.8,2605.6,3.83784902]
[1748941444635,3.164,2605.8,2605.4,6.75248192]
[1748941444827,3.164,2605.8,2605.5,3.83793835]
[1748941445139,3.164,2605.8,2605.6,10.0]
[1748941445639,3.164,2605.8,2605.6,13.8378624]
[1748941445827,3.164,2605.8,2605.6,3.8378624]
[1748941446029,3.164,2605.8,2605.5,3.83798855]
[1748941446542,1.135,2605.9,2605.4,12.9143142]
[1748941446716,1.1984,2606.6,2605.9,10.0]
[1748941447044,1.1984,2606.6,2606.2,2.9143142]
[1748941447243,3.91,2606.5,2606.2,10.0]
[1748941447445,1.70185467,2606.6,2606.2,10.0]
[1748941447738,3.91,2606.5,2606.2,10.0]
[1748941448256,1.70185467,2606.6,2606.2,6.75123429]
[1748941448409,5.61185467,2606.6,2606.2,6.75123429]
[1748941448604,0.56118547,2606.5,2606.2,6.75123429]
[1748941449144,0.56118547,2606.5,2606.2,2.9143142]
[1748941451012,0.56118547,2606.5,2606.2,6.75128001]
[1748941451213,5.61085467,2606.6,2606.2,6.75128001]
[1748941452119,5.61085467,2606.6,2606.2,2.9143142]
[1748941452318,5.61085467,2606.6,2606.2,12.9143142]
[1748941452721,5.61085467,2606.6,2606.2,10.0]
[1748941454350,5.1074,2606.6,2606.2,10.0]
[1748941454556,5.1074,2606.6,2606.0,6.75158161]
[1748941454557,5.1074,2606.6,2606.1,3.83709449]
[1748941454853,5.1074,2606.6,2606.2,10.0]
[1748941455644,1.1618,2607.2,2606.2,2.9143142]
[1748941455826,1.1618,2606.9,2606.4,2.9143142]
[1748941456154,3.906,2606.8,2606.4,2.9143142]
[1748941456454,3.906,2606.8,2606.3,3.83677041]
[1748941457045,7.74212164,2606.8,2606.2,6.85156837]
[1748941457221,2.9143142,2606.5,2605.6,1.73]
[1748941457427,5.02800912,2606.0,2605.6,12.726118]
[1748941457652,5.02800912,2606.0,2605.4,10.0]
[1748941457844,5.02800912,2606.0,2605.6,8.0]
[1748941458032,3.83751489,2605.9,2605.6,8.0]
[1748941458244,6.30543158,2606.0,2605.5,10.0]
[1748941458459,6.30543158,2606.0,2605.4,10.0]
[1748941458772,6.30543158,2606.0,2605.4,21.83816242]
[1748941458934,6.30543158,2606.0,2605.4,11.83816242]
[1748941459339,2.46810442,2606.0,2605.4,11.83816242]
[1748941460788,2.46810442,2606.0,2605.6,2.950885]
[1748941461087,2.46810442,2606.0,2605.6,2.539885]
[1748941461394,2.46810442,2606.0,2605.6,2.318724]
[1748941462164,6.30540414,2606.0,2605.6,2.318724]
[1748941462553,2.46810442,2606.0,2605.6,2.318724]
[1748941463506,6.30540459,2606.0,2605.6,2.318724]
[1748941463873,2.46810442,2606.0,2605.6,2.318724]
[1748941465072,1.1907,2606.0,2605.6,2.318724]
[1748941465376,3.8497,2606.1,2605.6,2.318724]
[1748941466113,3.83730443,2606.0,2605.6,2.318724]
[1748941466317,7.6868803,2606.1,2605.6,2.318724]
[1748941467429,3.8497,2606.1,2605.6,2.318724]
[1748941467732,4.61837287,2606.1,2605.6,2.318724]
[1748941467930,3.905,2606.0,2605.7,10.0]
[1748941468450,5.0728,2606.0,2605.6,12.899383]
[1748941468595,5.0728,2606.0,2605.7,10.0]
[1748941468795,1.1678,2606.0,2605.6,13.733462]
[1748941468997,5.0728,2606.0,2605.7,10.0]
[1748941469222,5.0728,2606.0,2605.6,15.632462]
[1748941469529,5.0728,2606.0,2605.7,10.0]
[1748941469687,1.1678,2606.0,2605.7,10.0]
[1748941469890,1.1798,2606.2,2605.8,20.0]
[1748941470090,1.1798,2606.2,2605.8,10.0]
[1748941470439,5.0838,2606.2,2605.8,10.0]
[1748941471387,1.1539,2606.4,2606.0,3.83721591]
[1748941471588,5.0579,2606.4,2606.0,6.497106]
[1748941471822,5.0579,2606.4,2606.1,10.0]
[1748941472035,5.0579,2606.4,2606.0,4.953028]
[1748941472237,5.0579,2606.4,2606.1,10.0]
[1748941472852,5.0579,2606.4,2605.9,6.75166163]
[1748941473205,5.0579,2606.4,2605.8,12.31671937]
[1748941473401,8.89462137,2606.4,2605.8,2.9143142]
[1748941473740,1.1539,2606.4,2606.1,10.0]
[1748941473945,3.903,2606.3,2606.1,10.0]
[1748941474145,3.903,2606.3,2606.0,3.285069]
[1748941474651,1.65295269,2606.4,2606.0,3.285069]
[1748941474854,5.55595269,2606.4,2606.0,7.1223675]
[1748941475039,1.1539,2606.4,2606.0,3.285069]
[1748941475224,5.0559,2606.4,2606.0,2.9143142]
[1748941475635,1.1539,2606.4,2606.0,2.9143142]
[1748941476018,5.0559,2606.4,2606.1,8.0]
[1748941476539,1.1539,2606.4,2606.1,8.0]
[1748941476717,5.0559,2606.4,2606.1,8.0]
[1748941477955,1.1539,2606.4,2606.1,8.0]
[1748941478120,5.0559,2606.4,2606.1,8.0]
[1748941478315,1.1539,2606.4,2606.1,8.0]
[1748941478620,3.902,2606.5,2606.1,8.0]
[1748941478845,4.94848702,2606.6,2606.1,8.0]
[1748941479157,9.39640646,2606.6,2606.1,8.0]
[1748941480057,9.39640646,2606.6,2605.8,3.83748926]
[1748941480058,5.55991944,2606.6,2605.8,10.9143142]
[1748941480254,0.03842307,2606.5,2606.1,8.0]
[1748941480463,9.39647055,2606.6,2606.1,8.0]
[1748941482232,3.83657443,2606.5,2606.1,8.0]
[1748941483466,5.15985133,2606.5,2606.1,8.0]
[1748941484659,5.15985133,2606.5,2605.9,8.0]
[1748941484853,5.15985133,2606.5,2605.7,9.1236]
[1748941484854,3.83689334,2606.3,2605.7,9.1236]
[1748941485058,1.1027,2606.2,2605.7,9.1236]
[1748941485255,4.93970411,2606.2,2605.7,9.1236]
[1748941485752,1.1027,2606.2,2605.7,9.1236]
[1748941485958,1.1027,2606.2,2605.7,12.9613203]
[1748941487238,1.1027,2606.2,2605.8,8.0]
[1748941487461,1.1027,2606.2,2605.7,12.9613203]
[1748941487666,1.1027,2606.2,2605.8,8.0]
[1748941487974,3.83715129,2606.1,2605.8,8.0]
[1748941488127,1.98686182,2606.2,2605.6,8.0]
[1748941488128,5.82387195,2606.2,2605.6,8.0]
[1748941488326,3.83730845,2606.0,2605.5,8.0]
[1748941488527,3.902,2606.0,2605.4,12.99288891]
[1748941488841,7.73940193,2606.0,2605.5,8.0]
[1748941489255,7.73940193,2606.0,2605.5,10.9143142]
[1748941489456,3.902,2606.0,2605.5,14.75232998]
[1748941491094,1.1474,2605.6,2605.1,0.02]
[1748941491226,1.1474,2605.6,2605.2,3.950353]
[1748941491429,1.1474,2605.6,2605.1,12.9343142]
[1748941491430,4.98531182,2605.6,2605.1,12.9343142]
[1748941491667,4.98531182,2605.6,2605.3,8.0]
[1748941491829,4.98531182,2605.6,2605.2,2.55919]
[1748941491830,1.1474,2605.6,2605.2,8.0]
[1748941493166,1.1474,2605.6,2605.3,2.9143142]
[1748941495749,1.1474,2605.6,2605.3,13.23473127]
[1748941497593,1.1474,2605.6,2605.3,3.23473127]